[Event "Early-Titled-Tuesday-Blitz-May-07-2024"]
[Site "Chess.com"]
[Date "2024.05.07"]
[Round "1"]
[White "Aryan_Tamadon"]
[Black "nuadvaga"]
[Result "1-0"]
[WhiteElo "2569"]
[BlackElo "2149"]
[TimeControl "180+1"]
[EndTime "8:07:31 PDT"]
[Termination "Aryan_Tamadon won by resignation"]

1. Nf3 {[%clk 0:02:58.3]} 1... d5 {[%clk 0:02:59]} 2. d3 {[%clk 0:02:57.2]} 2...
c5 {[%clk 0:02:58.9]} 3. g3 {[%clk 0:02:56.3]} 3... Nc6 {[%clk 0:02:58.7]} 4.
Bg2 {[%clk 0:02:56.3]} 4... Nf6 {[%clk 0:02:59]} 5. O-O {[%clk 0:02:56.9]} 5...
Bg4 {[%clk 0:02:59.4]} 6. Na3 {[%clk 0:02:48.2]} 6... e6 {[%clk 0:02:56.8]} 7.
Bd2 {[%clk 0:02:48.1]} 7... Qb6 {[%clk 0:02:51.7]} 8. Qc1 {[%clk 0:02:43.9]}
8... Be7 {[%clk 0:02:50.7]} 9. c4 {[%clk 0:02:31.9]} 9... d4 {[%clk 0:02:48.3]}
10. Nc2 {[%clk 0:02:30]} 10... e5 {[%clk 0:02:44.2]} 11. a3 {[%clk 0:02:16.2]}
11... a5 {[%clk 0:02:41.4]} 12. b3 {[%clk 0:01:42]} 12... O-O {[%clk 0:02:23]}
13. Rb1 {[%clk 0:01:40.2]} 13... e4 {[%clk 0:02:16]} 14. dxe4 {[%clk 0:01:34.1]}
14... Nxe4 {[%clk 0:02:15.3]} 15. Nfxd4 {[%clk 0:01:26.7]} 15... Nxd2 {[%clk
0:02:14.8]} 16. Nxc6 {[%clk 0:01:26.7]} 16... bxc6 {[%clk 0:01:50.6]} 17. Qxd2
{[%clk 0:01:26.8]} 17... Rad8 {[%clk 0:01:49.5]} 18. Qe3 {[%clk 0:01:16.6]}
18... Rfe8 {[%clk 0:01:48.4]} 19. Qe4 {[%clk 0:00:58.4]} 19... Bd7 {[%clk
0:01:35.5]} 20. Rfd1 {[%clk 0:00:48.1]} 20... Bf6 {[%clk 0:01:23.8]} 21. Qf3
{[%clk 0:00:46.7]} 21... h6 {[%clk 0:00:59.5]} 22. h3 {[%clk 0:00:39.1]} 22...
Qb8 {[%clk 0:00:35.2]} 23. b4 {[%clk 0:00:39.1]} 23... cxb4 {[%clk 0:00:34.4]}
24. axb4 {[%clk 0:00:40]} 24... axb4 {[%clk 0:00:34]} 25. Nxb4 {[%clk
0:00:40.9]} 25... Qc8 {[%clk 0:00:34.2]} 26. e3 {[%clk 0:00:36.5]} 26... Bxh3
{[%clk 0:00:31.9]} 27. Bxh3 {[%clk 0:00:30.9]} 27... Qxh3 {[%clk 0:00:31.6]} 28.
Nxc6 {[%clk 0:00:30.6]} 28... Rxd1+ {[%clk 0:00:31.3]} 29. Rxd1 {[%clk
0:00:31.5]} 29... Qe6 {[%clk 0:00:26.9]} 30. Qd5 {[%clk 0:00:29.5]} 30... Qg4
{[%clk 0:00:25.5]} 31. Qd7 {[%clk 0:00:23.5]} 31... Re6 {[%clk 0:00:23.3]} 32.
Nd8 {[%clk 0:00:13.4]} 32... Bxd8 {[%clk 0:00:21.1]} 33. Qxd8+ {[%clk
0:00:14.3]} 33... Kh7 {[%clk 0:00:21.5]} 34. c5 {[%clk 0:00:13.8]} 34... g6
{[%clk 0:00:19.6]} 35. Qd7 {[%clk 0:00:12.7]} 35... Kg7 {[%clk 0:00:19.2]} 36.
c6 {[%clk 0:00:12.4]} 36... Rf6 {[%clk 0:00:17.7]} 37. Qxg4 {[%clk 0:00:12.4]}
37... h5 {[%clk 0:00:17.7]} 38. Qd4 {[%clk 0:00:12]} 38... h4 {[%clk 0:00:16.5]}
39. gxh4 {[%clk 0:00:11.9]} 1-0

[Event "Early-Titled-Tuesday-Blitz-May-07-2024"]
[Site "Chess.com"]
[Date "2024.05.07"]
[Round "1"]
[White "NCchamp"]
[Black "vladgoncharov"]
[Result "0-1"]
[WhiteElo "2252"]
[BlackElo "2592"]
[TimeControl "180+1"]
[EndTime "8:07:32 PDT"]
[Termination "vladgoncharov won on time"]

1. d4 {[%clk 0:02:59]} 1... Nf6 {[%clk 0:02:56.2]} 2. Bg5 {[%clk 0:02:57.4]}
2... e6 {[%clk 0:02:54.8]} 3. e4 {[%clk 0:02:56.7]} 3... d5 {[%clk 0:02:54.5]}
4. e5 {[%clk 0:02:54.4]} 4... h6 {[%clk 0:02:54.1]} 5. Be3 {[%clk 0:02:53.7]}
5... Nfd7 {[%clk 0:02:39.7]} 6. c3 {[%clk 0:02:53.8]} 6... c5 {[%clk 0:02:39.4]}
7. Nd2 {[%clk 0:02:53.2]} 7... b6 {[%clk 0:02:36.8]} 8. Bd3 {[%clk 0:02:51]}
8... Ba6 {[%clk 0:02:34.8]} 9. Bc2 {[%clk 0:02:50.5]} 9... Nc6 {[%clk
0:02:29.5]} 10. Ne2 {[%clk 0:02:49.8]} 10... b5 {[%clk 0:02:24.7]} 11. a3 {[%clk
0:02:48.6]} 11... Rb8 {[%clk 0:02:21.1]} 12. b4 {[%clk 0:02:44.5]} 12... cxd4
{[%clk 0:02:10]} 13. cxd4 {[%clk 0:02:45.4]} 13... Nb6 {[%clk 0:02:09.4]} 14.
O-O {[%clk 0:02:32.2]} 14... Nc4 {[%clk 0:02:08.8]} 15. Nxc4 {[%clk 0:02:23.6]}
15... dxc4 {[%clk 0:02:08.7]} 16. f4 {[%clk 0:02:15]} 16... Ne7 {[%clk
0:02:02.3]} 17. f5 {[%clk 0:02:06.4]} 17... exf5 {[%clk 0:01:55.7]} 18. Nc3
{[%clk 0:01:53.3]} 18... g6 {[%clk 0:01:49.4]} 19. d5 {[%clk 0:01:52.9]} 19...
Bg7 {[%clk 0:01:48.2]} 20. Bf4 {[%clk 0:01:39.5]} 20... O-O {[%clk 0:01:44.9]}
21. Qd2 {[%clk 0:01:31.9]} 21... g5 {[%clk 0:01:42.2]} 22. Be3 {[%clk
0:01:20.2]} 22... Bxe5 {[%clk 0:01:38.1]} 23. Bc5 {[%clk 0:01:19.5]} 23... Re8
{[%clk 0:01:25.9]} 24. Bxf5 {[%clk 0:01:17.1]} 24... Nxf5 {[%clk 0:01:23.5]} 25.
Rxf5 {[%clk 0:01:18]} 25... Bc8 {[%clk 0:01:22.7]} 26. Rf2 {[%clk 0:01:09.3]}
26... Bxc3 {[%clk 0:01:15.6]} 27. Qxc3 {[%clk 0:01:09]} 27... Qxd5 {[%clk
0:01:15.7]} 28. Raf1 {[%clk 0:00:50.3]} 28... Rb7 {[%clk 0:01:11.2]} 29. Rd2
{[%clk 0:00:38.2]} 29... Qe4 {[%clk 0:01:05.3]} 30. Qf6 {[%clk 0:00:28.3]} 30...
Re6 {[%clk 0:00:54.4]} 31. Rd8+ {[%clk 0:00:27.4]} 31... Re8 {[%clk 0:00:54.4]}
32. Qxh6 {[%clk 0:00:22.4]} 32... Rxd8 {[%clk 0:00:43.7]} 33. Qxg5+ {[%clk
0:00:22.5]} 33... Kh7 {[%clk 0:00:22.7]} 34. Qxd8 {[%clk 0:00:17.9]} 34... Bh3
{[%clk 0:00:15.4]} 35. Qd2 {[%clk 0:00:05.2]} 35... Rd7 {[%clk 0:00:12.4]} 36.
Qf2 {[%clk 0:00:05.1]} 36... Be6 {[%clk 0:00:11.5]} 37. Qf6 {[%clk 0:00:03.4]}
37... Rd2 {[%clk 0:00:10.3]} 0-1

[Event "Early-Titled-Tuesday-Blitz-May-07-2024"]
[Site "Chess.com"]
[Date "2024.05.07"]
[Round "1"]
[White "WilsonPalencia21"]
[Black "BogdanDeac"]
[Result "0-1"]
[WhiteElo "2538"]
[BlackElo "3091"]
[TimeControl "180+1"]
[EndTime "8:07:34 PDT"]
[Termination "BogdanDeac won by resignation"]

1. d4 {[%clk 0:03:00.9]} 1... Nf6 {[%clk 0:02:57.8]} 2. c4 {[%clk 0:03:00.7]}
2... g6 {[%clk 0:02:56.7]} 3. Nf3 {[%clk 0:03:00.9]} 3... Bg7 {[%clk 0:02:56.8]}
4. Nc3 {[%clk 0:03:01.5]} 4... O-O {[%clk 0:02:55.9]} 5. e4 {[%clk 0:03:01.7]}
5... d6 {[%clk 0:02:56.2]} 6. Be2 {[%clk 0:03:02.2]} 6... e5 {[%clk 0:02:54.4]}
7. O-O {[%clk 0:03:02.8]} 7... Na6 {[%clk 0:02:50.7]} 8. d5 {[%clk 0:03:02.2]}
8... Nc5 {[%clk 0:02:48.9]} 9. Qc2 {[%clk 0:03:02.3]} 9... a5 {[%clk 0:02:49]}
10. Bg5 {[%clk 0:03:01.1]} 10... h6 {[%clk 0:02:46.3]} 11. Be3 {[%clk
0:03:00.9]} 11... b6 {[%clk 0:02:45.1]} 12. Nd2 {[%clk 0:02:59.9]} 12... Ng4
{[%clk 0:02:04.5]} 13. Bxg4 {[%clk 0:02:45]} 13... Bxg4 {[%clk 0:02:05.4]} 14.
a3 {[%clk 0:02:45.2]} 14... a4 {[%clk 0:01:41.8]} 15. Bxc5 {[%clk 0:02:33.4]}
15... dxc5 {[%clk 0:01:38.8]} 16. Nxa4 {[%clk 0:02:33.3]} 16... Qg5 {[%clk
0:01:36.1]} 17. Kh1 {[%clk 0:02:31.9]} 17... Rxa4 {[%clk 0:01:10.5]} 18. f4
{[%clk 0:02:31.6]} 18... exf4 {[%clk 0:01:05.9]} 19. Qxa4 {[%clk 0:02:31.1]}
19... Bxb2 {[%clk 0:01:06.3]} 20. Rae1 {[%clk 0:02:18]} 20... Be5 {[%clk
0:00:58.8]} 21. Nf3 {[%clk 0:02:13]} 21... Bxf3 {[%clk 0:00:56.6]} 22. gxf3
{[%clk 0:02:13]} 22... Qh4 {[%clk 0:00:47.8]} 23. Qc6 {[%clk 0:01:45.5]} 23...
Kg7 {[%clk 0:00:42.8]} 24. d6 {[%clk 0:01:37.3]} 24... cxd6 {[%clk 0:00:38.5]}
25. Qxb6 {[%clk 0:01:37.2]} 25... Ra8 {[%clk 0:00:37.9]} 26. Qb3 {[%clk
0:01:29.3]} 26... Qd8 {[%clk 0:00:31.3]} 27. Re2 {[%clk 0:01:27.1]} 27... Rb8
{[%clk 0:00:28.8]} 28. Qa4 {[%clk 0:01:17.7]} 28... Qc8 {[%clk 0:00:28.1]} 29.
Ra2 {[%clk 0:01:09.6]} 29... Qh3 {[%clk 0:00:25.3]} 30. Qd1 {[%clk 0:01:10.1]}
30... Qc8 {[%clk 0:00:18.1]} 31. a4 {[%clk 0:01:10]} 31... Qa6 {[%clk
0:00:18.3]} 32. Qc2 {[%clk 0:01:03.6]} 32... Rb4 {[%clk 0:00:18.2]} 33. Rc1
{[%clk 0:01:02.3]} 33... Qa5 {[%clk 0:00:18.5]} 34. Qd3 {[%clk 0:00:58.7]} 34...
Rxa4 {[%clk 0:00:15.3]} 35. Rxa4 {[%clk 0:00:58.7]} 35... Qxa4 {[%clk
0:00:16.2]} 36. Qc2 {[%clk 0:00:58.6]} 36... Qa3 {[%clk 0:00:15.2]} 37. Kg2
{[%clk 0:00:57.1]} 37... h5 {[%clk 0:00:15.2]} 38. Rf1 {[%clk 0:00:56.8]} 38...
g5 {[%clk 0:00:14.1]} 39. h3 {[%clk 0:00:56.6]} 39... Qe3 {[%clk 0:00:13.4]} 40.
Qc1 {[%clk 0:00:49.1]} 40... Qd3 {[%clk 0:00:10.4]} 41. Rf2 {[%clk 0:00:23.4]}
41... Bd4 {[%clk 0:00:09]} 42. Rc2 {[%clk 0:00:21.6]} 42... g4 {[%clk 0:00:08]}
43. hxg4 {[%clk 0:00:20]} 43... hxg4 {[%clk 0:00:08]} 44. Qxf4 {[%clk
0:00:08.3]} 44... Qxc2+ {[%clk 0:00:06.7]} 0-1

[Event "Early-Titled-Tuesday-Blitz-May-07-2024"]
[Site "Chess.com"]
[Date "2024.05.07"]
[Round "1"]
[White "ansko1999"]
[Black "ferdipy"]
[Result "1-0"]
[WhiteElo "2631"]
[BlackElo "2337"]
[TimeControl "180+1"]
[EndTime "8:07:34 PDT"]
[Termination "ansko1999 won by resignation"]

1. Nc3 {[%clk 0:03:00.4]} 1... e6 {[%clk 0:01:30.3]} 2. d4 {[%clk 0:02:58.8]}
2... d5 {[%clk 0:01:30.4]} 3. Bf4 {[%clk 0:02:57.8]} 3... Bb4 {[%clk 0:01:31]}
4. e3 {[%clk 0:02:53.4]} 4... Nf6 {[%clk 0:01:31.2]} 5. Bd3 {[%clk 0:02:49.5]}
5... O-O {[%clk 0:01:31.6]} 6. Ne2 {[%clk 0:02:48.3]} 6... c5 {[%clk 0:01:32]}
7. a3 {[%clk 0:02:46.5]} 7... Bxc3+ {[%clk 0:01:31.1]} 8. Nxc3 {[%clk
0:02:46.6]} 8... c4 {[%clk 0:01:31.1]} 9. Be2 {[%clk 0:02:46.4]} 9... Nc6 {[%clk
0:01:30.7]} 10. O-O {[%clk 0:02:44.5]} 10... a6 {[%clk 0:01:30.7]} 11. Bg3
{[%clk 0:02:36.6]} 11... b5 {[%clk 0:01:31.1]} 12. f3 {[%clk 0:02:36.5]} 12...
Qb6 {[%clk 0:01:27.8]} 13. Bf2 {[%clk 0:02:33.5]} 13... b4 {[%clk 0:01:26.1]}
14. axb4 {[%clk 0:02:33.3]} 14... Qxb4 {[%clk 0:01:26.8]} 15. Ra2 {[%clk
0:02:29.7]} 15... Qe7 {[%clk 0:01:22.9]} 16. e4 {[%clk 0:02:28.6]} 16... Nb4
{[%clk 0:01:21.8]} 17. Ra1 {[%clk 0:02:24.6]} 17... Rb8 {[%clk 0:01:21.1]} 18.
Bh4 {[%clk 0:02:15.2]} 18... e5 {[%clk 0:01:13.3]} 19. dxe5 {[%clk 0:02:04.7]}
19... Qxe5 {[%clk 0:01:05.1]} 20. Bg3 {[%clk 0:02:04.8]} 20... Qe6 {[%clk
0:00:36.7]} 21. Bxb8 {[%clk 0:01:47.2]} 21... Qb6+ {[%clk 0:00:37.3]} 22. Kh1
{[%clk 0:01:47.4]} 22... Qxb8 {[%clk 0:00:37.9]} 23. exd5 {[%clk 0:01:46.3]}
23... Bf5 {[%clk 0:00:30.6]} 24. Rc1 {[%clk 0:01:39.7]} 24... Rd8 {[%clk
0:00:26.4]} 25. Bxc4 {[%clk 0:01:38.6]} 25... a5 {[%clk 0:00:23.7]} 26. Bb3
{[%clk 0:01:31]} 26... Qf4 {[%clk 0:00:22.5]} 27. Ne2 {[%clk 0:01:26.6]} 27...
Qh4 {[%clk 0:00:22.3]} 28. Qe1 {[%clk 0:01:22.6]} 28... Qh6 {[%clk 0:00:21.7]}
29. Ng3 {[%clk 0:01:19.3]} 29... Bg6 {[%clk 0:00:21.6]} 30. Ne4 {[%clk
0:00:58.5]} 30... Nfxd5 {[%clk 0:00:19.8]} 31. Rd1 {[%clk 0:00:53.2]} 31... Qh5
{[%clk 0:00:09]} 32. c3 {[%clk 0:00:42.8]} 32... Nc6 {[%clk 0:00:05.5]} 33. Ba4
{[%clk 0:00:36.6]} 33... Nde7 {[%clk 0:00:03]} 34. Bxc6 {[%clk 0:00:30.9]} 34...
Nxc6 {[%clk 0:00:03.9]} 35. Rxd8+ {[%clk 0:00:30.3]} 35... Nxd8 {[%clk
0:00:04.8]} 36. Qd2 {[%clk 0:00:29.3]} 36... Qh4 {[%clk 0:00:05.4]} 37. Qg5
{[%clk 0:00:25]} 37... Qxg5 {[%clk 0:00:05.1]} 38. Nxg5 {[%clk 0:00:25.9]} 38...
h6 {[%clk 0:00:05.3]} 39. Ne4 {[%clk 0:00:26.1]} 39... Ne6 {[%clk 0:00:05.8]}
40. Ra1 {[%clk 0:00:25.8]} 40... Nf4 {[%clk 0:00:05.1]} 41. Rxa5 {[%clk
0:00:25.2]} 41... Nd3 {[%clk 0:00:06]} 42. Ra8+ {[%clk 0:00:24.7]} 42... Kh7
{[%clk 0:00:06.2]} 43. Rb8 {[%clk 0:00:25.4]} 43... f5 {[%clk 0:00:06]} 44. Nd6
{[%clk 0:00:24]} 44... Nf2+ {[%clk 0:00:05.8]} 45. Kg1 {[%clk 0:00:24.6]} 45...
Nd1 {[%clk 0:00:06.4]} 46. c4 {[%clk 0:00:23.8]} 46... Ne3 {[%clk 0:00:06.9]}
47. c5 {[%clk 0:00:24.3]} 47... Nd5 {[%clk 0:00:07.6]} 48. c6 {[%clk 0:00:24.4]}
48... Nc7 {[%clk 0:00:08.4]} 49. Rb7 {[%clk 0:00:23.7]} 49... Ne6 {[%clk
0:00:07.7]} 50. c7 {[%clk 0:00:23.8]} 50... f4 {[%clk 0:00:08]} 51. c8=Q {[%clk
0:00:22.8]} 1-0

[Event "Early-Titled-Tuesday-Blitz-May-07-2024"]
[Site "Chess.com"]
[Date "2024.05.07"]
[Round "1"]
[White "Ivan11Martic"]
[Black "NM_Antelacus"]
[Result "1/2-1/2"]
[WhiteElo "2604"]
[BlackElo "2293"]
[TimeControl "180+1"]
[EndTime "8:07:35 PDT"]
[Termination "Game drawn by repetition"]

1. e4 {[%clk 0:03:00.9]} 1... c5 {[%clk 0:02:59.6]} 2. c3 {[%clk 0:03:00.5]}
2... d5 {[%clk 0:02:59]} 3. exd5 {[%clk 0:03:00.4]} 3... Qxd5 {[%clk 0:02:59.7]}
4. d4 {[%clk 0:03:00.8]} 4... Nc6 {[%clk 0:02:58.7]} 5. Nf3 {[%clk 0:03:01]}
5... Bg4 {[%clk 0:02:58.5]} 6. dxc5 {[%clk 0:03:00.6]} 6... Qxc5 {[%clk
0:02:55.1]} 7. Na3 {[%clk 0:02:58.7]} 7... Nf6 {[%clk 0:02:48.2]} 8. Be3 {[%clk
0:02:58.7]} 8... Qa5 {[%clk 0:02:47.2]} 9. h3 {[%clk 0:02:57.6]} 9... Bh5 {[%clk
0:02:46.7]} 10. Nc4 {[%clk 0:02:55.5]} 10... Qc7 {[%clk 0:02:45]} 11. Be2 {[%clk
0:02:42.7]} 11... e6 {[%clk 0:02:44.1]} 12. Qa4 {[%clk 0:02:38.3]} 12... Be7
{[%clk 0:02:40.4]} 13. Nce5 {[%clk 0:02:19.5]} 13... O-O {[%clk 0:02:31.1]} 14.
Nxc6 {[%clk 0:02:18]} 14... bxc6 {[%clk 0:02:29.7]} 15. Bf4 {[%clk 0:02:05.1]}
15... Qb7 {[%clk 0:02:26]} 16. Qb3 {[%clk 0:02:05.2]} 16... Qxb3 {[%clk
0:02:15.4]} 17. axb3 {[%clk 0:02:06.1]} 17... Nd5 {[%clk 0:02:14.9]} 18. Bg3
{[%clk 0:02:02.6]} 18... a5 {[%clk 0:02:12.2]} 19. Ne5 {[%clk 0:01:54.6]} 19...
Bxe2 {[%clk 0:02:09.4]} 20. Kxe2 {[%clk 0:01:55.5]} 20... Rfb8 {[%clk 0:01:50]}
21. Nxc6 {[%clk 0:01:50.9]} 21... Rxb3 {[%clk 0:01:49.1]} 22. c4 {[%clk
0:01:43.9]} 22... Rxb2+ {[%clk 0:01:47.8]} 23. Kf1 {[%clk 0:01:39.3]} 23... Bf6
{[%clk 0:01:18.2]} 24. cxd5 {[%clk 0:01:38.6]} 24... a4 {[%clk 0:01:13.7]} 25.
dxe6 {[%clk 0:01:16]} 25... fxe6 {[%clk 0:01:10.6]} 26. Kg1 {[%clk 0:01:09.9]}
26... Rc2 {[%clk 0:01:06.6]} 27. Ne5 {[%clk 0:01:08.9]} 27... Re2 {[%clk
0:01:02.7]} 28. f4 {[%clk 0:01:07]} 28... a3 {[%clk 0:00:58.9]} 29. Kh2 {[%clk
0:01:06]} 29... a2 {[%clk 0:00:58.2]} 30. Rhd1 {[%clk 0:00:57.4]} 30... g5
{[%clk 0:00:56.5]} 31. Ng4 {[%clk 0:00:43.2]} 31... Bxa1 {[%clk 0:00:53.8]} 32.
Rxa1 {[%clk 0:00:44.1]} 32... gxf4 {[%clk 0:00:51]} 33. Bxf4 {[%clk 0:00:43.7]}
33... Rb2 {[%clk 0:00:49]} 34. Be5 {[%clk 0:00:42.6]} 34... Rb1 {[%clk 0:00:46]}
35. Nf6+ {[%clk 0:00:37.9]} 35... Kf7 {[%clk 0:00:44.9]} 36. Nxh7 {[%clk
0:00:37.9]} 36... Rxa1 {[%clk 0:00:44.7]} 37. Bxa1 {[%clk 0:00:38.3]} 37... Rb8
{[%clk 0:00:43.3]} 38. Ng5+ {[%clk 0:00:38.1]} 38... Ke7 {[%clk 0:00:42.5]} 39.
h4 {[%clk 0:00:34]} 39... Rb1 {[%clk 0:00:42]} 40. Be5 {[%clk 0:00:32.3]} 40...
a1=Q {[%clk 0:00:41.6]} 41. Bxa1 {[%clk 0:00:32.4]} 41... Rxa1 {[%clk
0:00:41.9]} 42. Kg3 {[%clk 0:00:32.6]} 42... Kf6 {[%clk 0:00:41.6]} 43. Ne4+
{[%clk 0:00:31.9]} 43... Ke5 {[%clk 0:00:41.5]} 44. Ng5 {[%clk 0:00:31.1]} 44...
Ra4 {[%clk 0:00:40.9]} 45. h5 {[%clk 0:00:30.4]} 45... Kf5 {[%clk 0:00:40.6]}
46. Nf3 {[%clk 0:00:19.5]} 46... e5 {[%clk 0:00:39.1]} 47. h6 {[%clk 0:00:18.4]}
47... Kg6 {[%clk 0:00:36.6]} 48. Nxe5+ {[%clk 0:00:17.7]} 48... Kxh6 {[%clk
0:00:36.8]} 49. Nf3 {[%clk 0:00:18]} 49... Kg6 {[%clk 0:00:35.6]} 50. Nh4+
{[%clk 0:00:17.5]} 50... Kg5 {[%clk 0:00:35]} 51. Nf3+ {[%clk 0:00:18.4]} 51...
Kf5 {[%clk 0:00:35]} 52. Kf2 {[%clk 0:00:17.9]} 52... Kf4 {[%clk 0:00:33.5]} 53.
Nh4 {[%clk 0:00:16.1]} 53... Ra2+ {[%clk 0:00:32.2]} 54. Kg1 {[%clk 0:00:16.1]}
54... Kg3 {[%clk 0:00:30.5]} 55. Nf5+ {[%clk 0:00:15.8]} 55... Kf4 {[%clk
0:00:30.6]} 56. Nh4 {[%clk 0:00:15.7]} 56... Kg3 {[%clk 0:00:28]} 57. Nf5+
{[%clk 0:00:15.5]} 57... Kf4 {[%clk 0:00:27.9]} 58. Nh4 {[%clk 0:00:15.3]}
1/2-1/2

[Event "Early-Titled-Tuesday-Blitz-May-07-2024"]
[Site "Chess.com"]
[Date "2024.05.07"]
[Round "1"]
[White "watermelonattackk"]
[Black "FLYD"]
[Result "1-0"]
[WhiteElo "2555"]
[BlackElo "1997"]
[TimeControl "180+1"]
[EndTime "8:07:37 PDT"]
[Termination "watermelonattackk won by checkmate"]

1. d4 {[%clk 0:02:57]} 1... Nf6 {[%clk 0:02:59.8]} 2. Nf3 {[%clk 0:02:57.2]}
2... e6 {[%clk 0:02:59.5]} 3. g3 {[%clk 0:02:57.3]} 3... d5 {[%clk 0:02:58.9]}
4. Bg2 {[%clk 0:02:58]} 4... Be7 {[%clk 0:02:59.6]} 5. O-O {[%clk 0:02:58.6]}
5... O-O {[%clk 0:03:00.3]} 6. c4 {[%clk 0:02:59.5]} 6... dxc4 {[%clk
0:03:01.2]} 7. Qc2 {[%clk 0:02:59.3]} 7... a6 {[%clk 0:03:01.8]} 8. a4 {[%clk
0:02:59]} 8... Bd7 {[%clk 0:02:51.9]} 9. Qxc4 {[%clk 0:02:58.7]} 9... Bc6 {[%clk
0:02:51.9]} 10. Bf4 {[%clk 0:02:58.2]} 10... Nbd7 {[%clk 0:02:50.8]} 11. Nbd2
{[%clk 0:02:55]} 11... Nb6 {[%clk 0:02:49.8]} 12. Qc1 {[%clk 0:02:54.2]} 12...
Nbd5 {[%clk 0:02:44]} 13. Nc4 {[%clk 0:02:45.7]} 13... Nxf4 {[%clk 0:02:31.2]}
14. gxf4 {[%clk 0:02:45.8]} 14... h6 {[%clk 0:02:21.2]} 15. e3 {[%clk
0:02:45.8]} 15... Bd6 {[%clk 0:02:14.8]} 16. Rd1 {[%clk 0:02:45.3]} 16... Nd5
{[%clk 0:02:08.8]} 17. Nfe5 {[%clk 0:02:44.1]} 17... Bxe5 {[%clk 0:02:08.3]} 18.
Nxe5 {[%clk 0:02:43.6]} 18... Qd6 {[%clk 0:01:48.5]} 19. e4 {[%clk 0:02:13.2]}
19... Nf6 {[%clk 0:01:48]} 20. Nxc6 {[%clk 0:02:10.6]} 20... Qxc6 {[%clk
0:01:43.7]} 21. e5 {[%clk 0:02:10.6]} 21... Nd5 {[%clk 0:01:42.2]} 22. Qxc6
{[%clk 0:02:09.8]} 22... bxc6 {[%clk 0:01:43.1]} 23. Bxd5 {[%clk 0:02:10]} 23...
cxd5 {[%clk 0:01:41.4]} 24. Rac1 {[%clk 0:02:10.6]} 24... Ra7 {[%clk 0:01:30.8]}
25. Rc6 {[%clk 0:02:09.8]} 25... Rb8 {[%clk 0:01:29.6]} 26. Rd2 {[%clk
0:01:58.3]} 26... a5 {[%clk 0:01:29.7]} 27. Rc3 {[%clk 0:01:53.5]} 27... Rab7
{[%clk 0:01:28.7]} 28. Rc5 {[%clk 0:01:51.5]} 28... Rxb2 {[%clk 0:01:23.3]} 29.
Rxb2 {[%clk 0:01:51.1]} 29... Rxb2 {[%clk 0:01:24.2]} 30. Rxa5 {[%clk
0:01:50.4]} 30... Rb4 {[%clk 0:01:24.8]} 31. f5 {[%clk 0:01:39]} 31... Rxd4
{[%clk 0:01:21.6]} 32. Ra8+ {[%clk 0:01:34.7]} 32... Kh7 {[%clk 0:01:21.2]} 33.
a5 {[%clk 0:01:35.1]} 33... exf5 {[%clk 0:01:14.9]} 34. a6 {[%clk 0:01:34.7]}
34... Ra4 {[%clk 0:01:14.6]} 35. Kf1 {[%clk 0:01:33]} 35... c5 {[%clk
0:01:14.5]} 36. Ke2 {[%clk 0:01:33.4]} 36... Kg6 {[%clk 0:01:09.1]} 37. a7
{[%clk 0:01:33.5]} 37... c4 {[%clk 0:01:01.7]} 38. Rd8 {[%clk 0:01:31.1]} 38...
Rxa7 {[%clk 0:00:58.7]} 39. Rxd5 {[%clk 0:01:28]} 39... Ra2+ {[%clk 0:00:58.6]}
40. Kf3 {[%clk 0:01:28]} 40... c3 {[%clk 0:00:57.6]} 41. Rc5 {[%clk 0:01:28.3]}
41... c2 {[%clk 0:00:57.8]} 42. h4 {[%clk 0:01:27.8]} 42... h5 {[%clk
0:00:57.7]} 43. Rc6+ {[%clk 0:01:26.8]} 43... Kh7 {[%clk 0:00:55.8]} 44. Kf4
{[%clk 0:01:27.2]} 44... g6 {[%clk 0:00:55.1]} 45. Kg5 {[%clk 0:01:26.5]} 45...
Kg7 {[%clk 0:00:50.9]} 46. Rc7 {[%clk 0:01:20.7]} 46... Ra4 {[%clk 0:00:47.6]}
47. f3 {[%clk 0:01:18.7]} 47... Ra6 {[%clk 0:00:23.5]} 48. Rxc2 {[%clk
0:01:15.7]} 48... Re6 {[%clk 0:00:24.1]} 49. Kf4 {[%clk 0:01:14.7]} 49... Rb6
{[%clk 0:00:18]} 50. Rc7 {[%clk 0:01:14.4]} 50... Kg8 {[%clk 0:00:12.8]} 51. Kg5
{[%clk 0:01:13.7]} 51... Rb3 {[%clk 0:00:13]} 52. Kf6 {[%clk 0:01:12]} 52...
Rxf3 {[%clk 0:00:12.5]} 53. Rxf7 {[%clk 0:01:11.7]} 53... Re3 {[%clk 0:00:10.1]}
54. Rg7+ {[%clk 0:01:10.7]} 54... Kh8 {[%clk 0:00:09.6]} 55. Rxg6 {[%clk
0:01:11.1]} 55... f4 {[%clk 0:00:08.9]} 56. Rg5 {[%clk 0:01:11.5]} 56... f3
{[%clk 0:00:08.3]} 57. Kf7 {[%clk 0:01:10.2]} 57... f2 {[%clk 0:00:00.8]} 58.
Rxh5# {[%clk 0:01:10.2]} 1-0